fUSD/lending_fUSD_20240502
["ID","MTS","AMOUNT","RATE_DAILY","PERIOD"]
[325289962,1714683067825,-500.0,0.00030684,2]
[325289963,1714683067834,-1488.34,0.00030684,2]
[325289964,1714683067844,-3356.41,0.00030684,2]
[325289965,1714683067855,-500.0,0.00030684,2]
[325289966,1714683067866,-573.14,0.00030684,2]
[325289967,1714683067876,-635.45,0.00030684,2]
[325289968,1714683067885,-500.0,0.00030684,2]
[325289969,1714683067895,-500.0,0.00030684,2]
[325289970,1714683067904,-1817.56,0.00030684,2]
[325289971,1714683067914,-500.0,0.00030684,2]
[325289972,1714683067923,-500.0,0.00030684,2]
[325289973,1714683067933,-4081.46,0.00030684,2]
[325289974,1714683067942,-1677.29,0.00030684,2]
[325289975,1714683067952,-537.36,0.00030684,2]
[325289976,1714683067961,-500.0,0.00030684,2]
[325289977,1714683067971,-1134.94,0.00030684,2]
[325289978,1714683067980,-968.31,0.00030684,2]
[325289979,1714683067989,-1335.63,0.00030684,2]
[325289980,1714683067998,-3736.4,0.00030684,2]
[325289981,1714683068008,-500.0,0.00030684,2]
[325289982,1714683068017,-568.92,0.00030684,2]
[325289983,1714683068026,-500.0,0.00030684,2]
[325289984,1714683068035,-554.42,0.00030684,2]
[325289985,1714683068045,-652.23,0.00030684,2]
[325289986,1714683068054,-500.0,0.00030684,2]
[325289987,1714683068063,-705.57,0.00030684,2]
[325289988,1714683068072,-500.0,0.00030684,2]
[325289989,1714683068082,-957.61,0.00030684,2]
[325289990,1714683068093,-1623.19,0.00030684,2]
[325289991,1714683068102,-2555.94,0.00030684,2]
[325289992,1714683068111,-500.0,0.00030684,2]
[325289993,1714683068120,-1026.44,0.00030684,2]
[325289994,1714683068129,-500.0,0.00030684,2]
[325289995,1714683068138,-500.0,0.00030684,2]
[325289996,1714683068147,-1517.33,0.00030684,2]
[325289997,1714683068156,-718.46,0.00030684,2]
[325289998,1714683068166,-1439.64,0.00030684,2]
[325289999,1714683068175,-5095.95,0.00030684,2]
[325290000,1714683068184,-1178.27,0.00030684,2]
[325290001,1714683068194,-1327.2,0.00030684,2]
[325290002,1714683068203,-502.35,0.00030684,2]
[325290003,1714683068212,-562.49,0.00030684,2]
[325290004,1714683068221,-758.48,0.00030684,2]
[325290005,1714683068230,-551.3,0.00030684,2]
[325290006,1714683068239,-500.0,0.00030684,2]
[325290007,1714683068248,-557.06,0.00030684,2]
[325290008,1714683068257,-5445.33,0.00030684,2]
[325290009,1714683068266,-727.6,0.00030684,2]
[325290010,1714683068275,-762.17,0.00030684,2]
[325290011,1714683068284,-45303.37,0.00030684,2]
[325290012,1714683068293,-500.0,0.00030684,2]
[325290013,1714683068303,-465.51006596,0.00030684,2]
[325290014,1714683068312,-1363.55,0.00030684,2]
[325290015,1714683068321,-2490.82,0.00030684,2]
[325290016,1714683068330,-500.0,0.00030684,2]
[325290017,1714683068341,-2769.91,0.00030684,2]
[325290018,1714683068350,-3004.84,0.00030684,2]
[325290019,1714683068359,-500.0,0.00030684,2]
[325290020,1714683068369,-1062.14,0.00030684,2]
[325290021,1714683068378,-743.02,0.00030684,2]
[325290022,1714683068387,-500.0,0.00030684,2]
[325290023,1714683068395,-15831.97,0.00030684,2]
[325290024,1714683068405,-500.0,0.00030684,2]
[325290025,1714683068414,-2761.68,0.00030684,2]
[325290026,1714683068423,-1113.43,0.00030684,2]
[325290027,1714683068432,-1501.38,0.00030684,2]
[325290028,1714683068441,-500.0,0.00030684,2]
[325290029,1714683068450,-500.0,0.00030684,2]
[325290030,1714683068460,-1216.58,0.00030684,2]
[325290031,1714683068470,-1371.34,0.00030684,2]
[325290032,1714683068479,-906.68,0.00030684,2]
[325290033,1714683068488,-865.05,0.00030684,2]
[325290034,1714683068497,-768.24,0.00030684,2]
[325290035,1714683068507,-2376.95,0.00030684,2]
[325290036,1714683068516,-3370.97,0.00030684,2]
[325290037,1714683068526,-500.0,0.00030684,2]
[325290038,1714683068535,-1354.24,0.00030684,2]
[325290039,1714683068544,-1029.53,0.00030684,2]
[325290040,1714683068553,-500.0,0.00030684,2]
[325290041,1714683068563,-2960.03,0.00030684,2]
[325290042,1714683068572,-500.0,0.00030684,2]
[325290043,1714683068581,-1764.92,0.00030684,2]
[325290044,1714683068591,-1009.68,0.00030684,2]
[325290045,1714683068600,-605.13,0.00030684,2]
[325290046,1714683068609,-1456.63,0.00030684,2]
[325290047,1714683068619,-184.20592858,0.00030684,2]
[325290048,1714683068628,-500.0,0.00030684,2]
[325290049,1714683068637,-541.71157776,0.00030684,2]
[325290050,1714683068647,-500.0,0.00030684,2]
[325290051,1714683068656,-500.0,0.00030684,2]
[325290052,1714683068665,-7969.41,0.00030684,2]
[325290053,1714683068674,-500.0,0.00030684,2]
[325290054,1714683068683,-500.0,0.00030684,2]
[325290055,1714683068692,-500.0,0.00030684,2]
[325290056,1714683068702,-955.39,0.00030684,2]
[325290057,1714683068712,-2243.19,0.00030684,2]
[325290058,1714683068722,-676.29,0.00030684,2]
[325290059,1714683068731,-1270.27,0.00030684,2]
[325290060,1714683068740,-500.0,0.00030684,2]
[325290061,1714683068749,-500.0,0.00030684,2]
[325290062,1714683068759,-500.0,0.00030684,2]
[325290063,1714683068768,-8073.81,0.00030684,2]
[325290064,1714683068779,-758.21,0.00030684,2]
[325290065,1714683068790,-500.0,0.00030684,2]
[325290066,1714683068799,-500.0,0.00030684,2]
[325290067,1714683068808,-500.0,0.00030684,2]
[325290068,1714683068818,-821.97,0.00030684,2]
[325290069,1714683068828,-5493.82,0.00030684,2]
[325290070,1714683068838,-1718.49,0.00030684,2]
[325290071,1714683068848,-610.46,0.00030684,2]
[325290072,1714683068858,-2570.96,0.00030684,2]
[325290073,1714683068867,-523.80273481,0.00030684,2]
[325290074,1714683068876,-2831.85,0.00030684,2]
[325290075,1714683068885,-500.0,0.00030684,2]
[325290076,1714683068895,-1043.96,0.00030684,2]
[325290077,1714683068904,-537.84,0.00030684,2]
[325290078,1714683068913,-650.25,0.00030684,2]
[325290079,1714683068922,-9695.1,0.00030684,2]
[325290080,1714683068933,-941.56,0.00030684,2]
[325290081,1714683068942,-500.0,0.00030684,2]
[325290082,1714683068951,-540.05,0.00030684,2]
[325290083,1714683068962,-4089.27,0.00030684,2]
[325290084,1714683068971,-1263.89,0.00030684,2]
[325290085,1714683068981,-1574.56,0.00030684,2]
[325290086,1714683068994,-946.74,0.00030684,2]
[325290087,1714683069005,-2116.12,0.00030684,2]
[325290088,1714683069017,-833.0,0.00030684,2]
[325290089,1714683069026,-4373.06,0.00030684,2]
[325290090,1714683069036,-1640.29,0.00030684,2]
[325290091,1714683069049,-3018.57,0.00030684,2]
[325290092,1714683069059,-500.0,0.00030684,2]
[325290093,1714683069069,-500.0,0.00030684,2]
[325290094,1714683069079,-989.93,0.00030684,2]
[325290095,1714683069089,-19891.27,0.00030684,2]
[325290096,1714683069098,-740.29,0.00030684,2]
[325290097,1714683069107,-2971.98,0.00030684,2]
[325290098,1714683069116,-548.43,0.00030684,2]
[325290099,1714683069131,-527.01366842,0.00030684,2]
[325290100,1714683069140,-1971.49,0.00030684,2]
[325290101,1714683069149,-500.0,0.00030684,2]
[325290102,1714683069158,-500.0,0.00030684,2]
[325290103,1714683069168,-927.39,0.00030684,2]
[325290104,1714683069186,-1288.02,0.00030684,2]
[325290105,1714683069197,-500.0,0.00030684,2]
[325290106,1714683069206,-817.28,0.00030684,2]
[325290107,1714683069216,-500.0,0.00030684,2]
[325290108,1714683069225,-3467.39,0.00030684,2]
[325290109,1714683069234,-500.0,0.00030684,2]
[325290110,1714683069243,-576.49178852,0.00030684,2]
[325290111,1714683069252,-500.0,0.00030684,2]
[325290112,1714683069262,-500.0,0.00030684,2]
[325290113,1714683069282,-1258.21,0.00030684,2]
[325290114,1714683069291,-1615.23,0.00030684,2]
[325290115,1714683069300,-11495.52,0.00030684,2]
[325290116,1714683069309,-1011.03,0.00030684,2]
[325290117,1714683069335,-2771.84,0.00030684,2]
[325290118,1714683069347,-1378.34,0.00030684,2]
[325290119,1714683069357,-500.0,0.00030684,2]
[325290120,1714683069383,-3318.29,0.00030684,2]
[325290121,1714683069394,-808.88,0.00030684,2]
[325290122,1714683069403,-12295.9,0.00030684,2]
[325290123,1714683069413,-2575.2,0.00030684,2]
[325290124,1714683069423,-1484.73,0.00030684,2]
[325290125,1714683069432,-511.28,0.00030684,2]
[325290126,1714683069442,-500.0,0.00030684,2]
[325290127,1714683069451,-1367.4,0.00030684,2]
[325290128,1714683069470,-500.0,0.00030684,2]
[325290129,1714683069480,-500.0,0.00030684,2]
[325290130,1714683069489,-1154.2,0.00030684,2]
[325290131,1714683069499,-461.4706371,0.00030684,2]
[325290132,1714683069509,-500.0,0.00030684,2]
[325290133,1714683069520,-500.0,0.00030684,2]
[325290134,1714683069530,-568.64761246,0.00030684,2]
[325290135,1714683069540,-1248.55,0.00030684,2]
[325290136,1714683069550,-1392.65,0.00030684,2]
[325290137,1714683069560,-1440.14,0.00030684,2]
[325290138,1714683069570,-2102.3,0.00030684,2]
[325290139,1714683069580,-5923.2,0.00030684,2]
[325290140,1714683069591,-3535.22,0.00030684,2]
[325290141,1714683069605,-896.52,0.00030684,2]
[325290142,1714683069615,-2915.59,0.00030684,2]
[325290143,1714683069628,-639.04,0.00030684,2]
[325290144,1714683069646,-4754.88,0.00030684,2]
[325290145,1714683069659,-500.0,0.00030684,2]
[325290146,1714683069669,-500.0,0.00030684,2]
[325290147,1714683069679,-57354.3,0.00030684,2]
[325290148,1714683069688,-1162.97,0.00030684,2]
[325290149,1714683069698,-5719.64,0.00030684,2]
[325290150,1714683069708,-2218.92,0.00030684,2]
[325290151,1714683069720,-898.07,0.00030684,2]
[325290152,1714683069730,-500.0,0.00030684,2]
[325290153,1714683069740,-500.0,0.00030684,2]
[325290154,1714683069750,-2724.43,0.00030684,2]
[325290155,1714683069763,-1758.7,0.00030684,2]
[325290156,1714683069773,-500.0,0.00030684,2]
[325290157,1714683069782,-500.0,0.00030684,2]
[325290158,1714683069868,-2516.79,0.00030684,2]
[325290159,1714683069914,-500.0,0.00030684,2]
[325290160,1714683069924,-7172.87,0.00030684,2]
[325290161,1714683069934,-500.0,0.00030684,2]
[325290162,1714683069944,-795.08,0.00030684,2]
[325290163,1714683069953,-500.0,0.00030684,2]
[325290164,1714683069963,-6587.91,0.00030684,2]
[325290165,1714683069973,-500.0,0.00030684,2]
[325290166,1714683069983,-3941.28,0.00030684,2]
[325290167,1714683069993,-500.0,0.00030684,2]
[325290168,1714683070002,-1364.01,0.00030684,2]
[325290169,1714683070012,-500.0,0.00030684,2]
[325290170,1714683070022,-2146.19,0.00030684,2]
[325290171,1714683070032,-556.18,0.00030684,2]
[325290172,1714683070042,-587.92,0.00030684,2]
[325290173,1714683070051,-500.0,0.00030684,2]
[325290174,1714683070061,-500.0,0.00030684,2]
[325290175,1714683070071,-3731.86,0.00030684,2]
[325290176,1714683070080,-12785.55,0.00030684,2]
[325290177,1714683070092,-727.53,0.00030684,2]
[325290178,1714683070101,-846.01,0.00030684,2]
[325290179,1714683070111,-500.0,0.00030684,2]
[325290180,1714683070120,-533.28,0.00030684,2]
[325290181,1714683070129,-18444.19,0.00030684,2]
[325290182,1714683070138,-3601.62,0.00030684,2]
[325290183,1714683070147,-2895.18,0.00030684,2]
[325290184,1714683070157,-500.0,0.00030684,2]
[325290185,1714683070167,-1353.44,0.00030684,2]
[325290186,1714683070176,-14107.57,0.00030684,2]
[325290187,1714683070186,-500.0,0.00030684,2]
[325290188,1714683070196,-500.0,0.00030684,2]
[325290189,1714683070206,-500.0,0.00030684,2]
[325290190,1714683070215,-500.0,0.00030684,2]
[325290191,1714683070224,-5327.9,0.00030684,2]
[325290192,1714683070233,-545.66,0.00030684,2]
[325290193,1714683070243,-1745.58,0.00030684,2]
[325290194,1714683070252,-500.0,0.00030684,2]
[325290195,1714683070261,-500.0,0.00030684,2]
[325290196,1714683070271,-3148.03,0.00030684,2]
[325290197,1714683070281,-500.0,0.00030684,2]
[325290198,1714683070291,-22162.2,0.00030684,2]
[325290199,1714683070300,-1367.75,0.00030684,2]
[325290200,1714683070310,-1652.07,0.00030684,2]
[325290201,1714683070320,-500.0,0.00030684,2]
[325290202,1714683070330,-502.76212884,0.00030684,2]
[325290203,1714683070339,-243.92029007,0.00030684,2]
[325290204,1714683070349,-6157.93,0.00030684,2]
[325290205,1714683070359,-3794.04,0.00030684,2]
[325290206,1714683070368,-4778.95,0.00030684,2]
[325290207,1714683070378,-1958.68,0.00030684,2]
[325290208,1714683070389,-500.0,0.00030684,2]
[325290209,1714683070399,-1798.53,0.00030684,2]
[325290210,1714683070410,-500.0,0.00030684,2]
[325290211,1714683070420,-3158.22,0.00030684,2]
[325290212,1714683070429,-621.64,0.00030684,2]
[325290213,1714683070439,-500.0,0.00030684,2]
[325290214,1714683070449,-150.0,0.00030684,2]
[325290215,1714683070458,-500.0,0.00030684,2]
[325290216,1714683070468,-500.0,0.00030684,2]
[325290217,1714683070478,-500.0,0.00030684,2]
[325290218,1714683070487,-500.0,0.00030684,2]
[325290219,1714683070496,-500.0,0.00030684,2]
[325290220,1714683070506,-500.0,0.00030684,2]
[325290221,1714683070515,-500.0,0.00030684,2]
[325290222,1714683070525,-11517.06,0.00030684,2]
[325290223,1714683070535,-1917.03,0.00030684,2]
[325290224,1714683070545,-500.0,0.00030684,2]
[325290225,1714683070554,-600.44,0.00030684,2]
[325290226,1714683070563,-500.0,0.00030684,2]
[325290227,1714683070573,-2389.26,0.00030684,2]
[325290228,1714683070582,-3409.08,0.00030684,2]
[325290229,1714683070592,-500.0,0.00030684,2]
[325290230,1714683070602,-500.0,0.00030684,2]
[325290231,1714683070611,-895.45,0.00030684,2]
[325290232,1714683070620,-1993.8,0.00030684,2]
[325290233,1714683070630,-1050.96,0.00030684,2]
[325290234,1714683070640,-500.0,0.00030684,2]
[325290235,1714683070649,-593.18,0.00030684,2]
[325290236,1714683070659,-916.18,0.00030684,2]
[325290237,1714683070668,-5393.45,0.00030684,2]
[325290238,1714683070678,-1471.71,0.00030684,2]
[325290239,1714683070687,-6233.63,0.00030684,2]
[325290240,1714683070696,-500.0,0.00030684,2]
[325290241,1714683070709,-1072.35,0.00030684,2]
[325290242,1714683070720,-1911.42,0.00030684,2]
[325290243,1714683070730,-6276.9,0.00030684,2]
[325290244,1714683070740,-4201.34,0.00030684,2]
[325290245,1714683070749,-500.0,0.00030684,2]
[325290246,1714683070759,-12002.08,0.00030684,2]
[325290247,1714683070768,-525.65,0.00030684,2]
[325290248,1714683070779,-500.0,0.00030684,2]
[325290249,1714683070790,-500.0,0.00030684,2]
[325290250,1714683070799,-2569.46,0.00030684,2]
[325290251,1714683070811,-3019.6,0.00030684,2]
[325290252,1714683070820,-1639.18,0.00030684,2]
[325290253,1714683070829,-581.68,0.00030684,2]
[325290254,1714683070839,-500.0,0.00030684,2]
[325290255,1714683070850,-4291.9,0.00030684,2]
[325290256,1714683070860,-500.0,0.00030684,2]
[325290257,1714683070870,-1823.22,0.00030684,2]
[325290258,1714683070880,-1481.76,0.00030684,2]
[325290259,1714683070890,-5680.57,0.00030684,2]
[325290260,1714683070899,-500.0,0.00030684,2]
[325290261,1714683070909,-2091.1,0.00030684,2]
[325290262,1714683070918,-1422.07,0.00030684,2]
[325290263,1714683070928,-205.366571,0.00030684,7]
[325290264,1714683070937,-500.0,0.00030684,2]
[325290265,1714683070946,-905.42,0.00030684,2]
[325290266,1714683070955,-2863.86,0.00030684,2]
[325290267,1714683070964,-500.0,0.00030684,2]
[325290268,1714683070974,-3291.58,0.00030684,2]
[325290269,1714683070983,-500.0,0.00030684,2]
[325290270,1714683070993,-47604.18,0.00030684,2]
[325290271,1714683071003,-1224.27,0.00030684,2]
[325290272,1714683071013,-205.366571,0.00030684,7]
[325290273,1714683071023,-1855.65,0.00030684,2]
[325290274,1714683071033,-500.0,0.00030684,2]
[325290275,1714683071043,-500.0,0.00030684,2]
[325290276,1714683071053,-1623.6,0.00030684,2]
[325290277,1714683071064,-1802.62,0.00030684,2]
[325290278,1714683071073,-1810.9,0.00030684,2]
[325290279,1714683071084,-838.98,0.00030684,2]
[325290280,1714683071095,-2517.76,0.00030684,2]
[325290281,1714683071105,-1296.39,0.00030684,2]
[325290282,1714683071115,-851.37,0.00030684,2]
[325290283,1714683071124,-597.5,0.00030684,2]
[325290284,1714683071134,-500.0,0.00030684,2]
[325290285,1714683071144,-1070.42,0.00030684,2]
[325290286,1714683071153,-1926.04,0.00030684,2]
[325290287,1714683071163,-500.0,0.00030684,2]
[325290288,1714683071173,-2162.83,0.00030684,2]
[325290289,1714683071183,-500.0,0.00030684,2]
[325290290,1714683071194,-312.80056256,0.00030684,2]
[325290291,1714683071204,-1566.25,0.00030684,2]
[325290292,1714683071213,-394.72599646,0.00030684,2]
[325290293,1714683071223,-1251.29,0.00030684,2]
[325290294,1714683071232,-500.0,0.00030684,2]
[325290295,1714683071243,-2063.74,0.00030684,2]
[325290296,1714683071252,-9265.55,0.00030684,2]
[325290297,1714683071262,-754.44,0.00030684,2]
[325290298,1714683071271,-500.0,0.00030684,2]
[325290299,1714683071281,-500.0,0.00030684,2]
[325290300,1714683071290,-9897.76,0.00030684,2]
[325290301,1714683071300,-1289.93,0.00030684,2]
[325290302,1714683071310,-500.0,0.00030684,2]
[325290303,1714683071320,-8380.0,0.00030684,2]
[325290304,1714683071330,-1121.93,0.00030684,2]
[325290305,1714683071339,-1959.02,0.00030684,2]
[325290306,1714683071349,-1321.59,0.00030684,2]
[325290307,1714683071358,-2879.67,0.00030684,2]
[325290308,1714683071367,-10134.49,0.00030684,2]
[325290309,1714683071377,-5403.02,0.00030684,2]
[325290310,1714683071386,-1940.11,0.00030684,2]
[325290311,1714683071395,-1858.84,0.00030684,2]
[325290312,1714683071405,-500.0,0.00030684,2]
[325290313,1714683071415,-500.0,0.00030684,2]
[325290314,1714683071425,-4682.26,0.00030684,2]
[325290315,1714683071435,-4098.44,0.00030684,2]
[325290316,1714683071444,-775.82,0.00030684,2]
[325290317,1714683071454,-500.0,0.00030684,2]
[325290318,1714683071463,-1367.68,0.00030684,2]
[325290319,1714683071472,-500.0,0.00030684,2]
[325290320,1714683071482,-500.0,0.00030684,2]
[325290321,1714683071492,-500.0,0.00030684,2]
[325290322,1714683071501,-557.56,0.00030684,2]
[325290323,1714683071510,-752.66,0.00030684,2]
[325290324,1714683071520,-500.0,0.00030684,2]
[325290325,1714683071529,-500.0,0.00030684,2]
[325290326,1714683071539,-500.0,0.00030684,2]
[325290327,1714683071548,-718.62,0.00030684,2]
[325290328,1714683071557,-1352.07,0.00030684,2]
[325290329,1714683071567,-1633.77,0.00030684,2]
[325290330,1714683071576,-1044.52,0.00030684,2]
[325290331,1714683071586,-500.0,0.00030684,2]
[325290332,1714683071596,-500.0,0.00030684,2]
[325290333,1714683071606,-5944.95,0.00030684,2]
[325290334,1714683071616,-500.0,0.00030684,2]
[325290335,1714683071626,-4431.81,0.00030684,2]
[325290336,1714683071635,-1089.0,0.00030684,2]
[325290337,1714683071644,-2269.33,0.00030684,2]
[325290338,1714683071653,-500.0,0.00030684,2]
[325290339,1714683071663,-2273.89,0.00030684,2]
[325290340,1714683071672,-500.0,0.00030684,2]
[325290341,1714683071681,-500.0,0.00030684,2]
[325290342,1714683071691,-2735.7,0.00030684,2]
[325290343,1714683071702,-2213.5,0.00030684,2]
[325290344,1714683071712,-533.06,0.00030684,2]
[325290345,1714683071723,-765.668105,0.00030685,14]
[325290346,1714683071732,-1000.0,0.000307,2]
[325290347,1714683071742,-200.0,0.0003073,2]
[325290348,1714683071751,-667.906833,0.0003073,10]
[325290349,1714683071763,-200.0,0.0003073,7]
[325290350,1714683071772,-500.0,0.0003073,2]
[325290351,1714683071785,-200.0,0.0003073,2]
[325290352,1714683071795,-151.0,0.00030748,2]
[325290353,1714683071806,-167.0,0.00030773,2]
[325290354,1714683071815,-1375.0,0.000308,2]
[325290355,1714683071824,-302.86,0.0003088,2]
[325290356,1714683071833,-20000.0,0.00030888,4]
[325290357,1714683071843,-199.050305,0.00030888,12]
[325290358,1714683071854,-199.050305,0.00030888,10]
[325290359,1714683071864,-199.050305,0.00030888,6]
[325290360,1714683071873,-199.050305,0.00030888,4]
[325290361,1714683071882,-1150.83001554,0.00030889,2]
[325290362,1714683071892,-3497.19944605,0.00030893,2]
[325290363,1714683071901,-199.050305,0.00030898,12]
[325290364,1714683071911,-199.050305,0.00030898,10]
[325290365,1714683071921,-199.050305,0.00030898,6]
[325290366,1714683071930,-191.62281446,0.000309,2]
[325290367,1714683071939,-150.0,0.000309,6]
[325290368,1714683071950,-1212.59388611,0.000309,2]
[325290369,1714683071959,-199.050305,0.00030908,4]
[325290370,1714683071969,-199.050305,0.00030908,6]
[325290371,1714683071979,-199.050305,0.00030908,10]
[325290372,1714683071988,-199.050305,0.00030908,12]
[325290373,1714683071998,-199.050305,0.00030918,12]
[325290374,1714683072299,-199.050305,0.00030918,10]
[325290375,1714683072309,-199.050305,0.00030918,6]
[325290376,1714683072318,-199.050305,0.00030918,4]
[325290377,1714683072328,-1560.03868352,0.00030924,2]
[325290378,1714683072337,-199.050305,0.00030928,4]
[325290379,1714683072349,-199.050305,0.00030928,6]
[325290380,1714683072358,-199.050305,0.00030928,10]
[325290381,1714683072367,-199.050305,0.00030928,12]
[325290382,1714683072377,-199.050305,0.00030938,12]
[325290383,1714683072386,-199.050305,0.00030938,10]
[325290384,1714683072395,-199.050305,0.00030938,6]
[325290385,1714683072404,-199.050305,0.00030938,4]
[325290386,1714683072414,-199.050305,0.00030948,4]
[325290387,1714683072423,-199.050305,0.00030948,6]
[325290388,1714683072432,-199.050305,0.00030948,10]
[325290389,1714683072442,-199.050305,0.00030948,12]
[325290390,1714683072452,-1734.59,0.00030956,4]
[325290391,1714683072461,-1734.59,0.00030956,4]
[325290392,1714683072471,-1734.59,0.00030956,4]
[325290393,1714683072480,-1734.59,0.00030956,4]
[325290394,1714683072490,-1734.69728545,0.00030956,4]
[325290395,1714683072500,-646.91,0.00030957,2]
[325290396,1714683072509,-646.91,0.00030957,2]
[325290397,1714683072518,-956.92,0.00030958,2]
[325290398,1714683072528,-656.05,0.00030958,2]
[325290399,1714683072537,-500.0,0.00030958,2]
[325290400,1714683072546,-500.0,0.00030958,2]
[325290401,1714683072555,-500.0,0.00030958,2]
[325290402,1714683072565,-500.0,0.00030958,2]
[325290403,1714683072574,-500.0,0.00030958,2]
[325290404,1714683072583,-240.03964198,0.00030958,2]
[325290405,1714683072594,-500.0,0.00030958,2]
[325290406,1714683072603,-843.96,0.00030958,2]
[325290407,1714683072613,-500.0,0.00030958,2]
[325290408,1714683072622,-907.78,0.00030958,2]
[325290409,1714683072631,-500.0,0.00030958,2]
[325290410,1714683072641,-500.0,0.00030958,2]
[325290411,1714683072651,-500.0,0.00030958,2]
[325290412,1714683072660,-500.0,0.00030958,2]
[325290413,1714683072670,-739.05,0.00030958,2]
[325290414,1714683072679,-500.0,0.00030958,2]
[325290415,1714683072689,-500.0,0.00030958,2]
[325290416,1714683072698,-500.0,0.00030958,2]
[325290417,1714683072708,-410.4449636,0.00030958,2]
[325290418,1714683072718,-504.58,0.00030958,2]
[325290419,1714683072727,-500.0,0.00030958,2]
[325290420,1714683072737,-500.0,0.00030958,2]
[325290421,1714683072747,-500.0,0.00030958,2]
[325290422,1714683072757,-500.0,0.00030958,2]
[325290423,1714683072772,-500.0,0.00030958,2]
[325290424,1714683072781,-533.53,0.00030958,2]
[325290425,1714683072791,-500.0,0.00030958,2]
[325290426,1714683072800,-500.0,0.00030958,2]
[325290427,1714683072811,-500.0,0.00030958,2]
[325290428,1714683072820,-500.0,0.00030958,2]
[325290429,1714683072829,-1170.06,0.00030958,2]
[325290430,1714683072840,-500.0,0.00030958,2]
[325290431,1714683072852,-500.0,0.00030958,2]
[325290432,1714683072863,-500.0,0.00030958,2]
[325290433,1714683072873,-500.0,0.00030958,2]
[325290434,1714683072883,-500.0,0.00030958,2]
[325290435,1714683072892,-1062.26,0.00030958,2]
[325290436,1714683072902,-500.0,0.00030958,2]
[325290437,1714683072912,-500.0,0.00030958,2]
[325290438,1714683072921,-500.0,0.00030958,2]
[325290439,1714683072931,-500.0,0.00030958,2]
[325290440,1714683072942,-1032.63,0.00030958,2]
[325290441,1714683072952,-500.0,0.00030958,2]
[325290442,1714683072962,-500.0,0.00030958,2]
[325290443,1714683072972,-500.0,0.00030958,2]
[325290444,1714683072982,-500.0,0.00030958,2]
[325290445,1714683072992,-500.0,0.00030958,2]
[325290446,1714683073001,-532.99247694,0.00030958,2]
[325290447,1714683073011,-689.75,0.00030958,2]
[325290448,1714683073020,-500.0,0.00030958,2]
[325290449,1714683073030,-500.0,0.00030958,2]
[325290450,1714683073039,-606.2,0.00030958,2]
[325290451,1714683073049,-216.8733079,0.00030958,2]
[325290452,1714683073059,-500.0,0.00030958,2]
[325290453,1714683073068,-500.0,0.00030958,2]
[325290454,1714683073077,-411.10279238,0.00030958,2]
[325290455,1714683073087,-500.0,0.00030958,2]
[325290456,1714683073098,-500.0,0.00030958,2]
[325290457,1714683073108,-500.0,0.00030958,2]
[325290458,1714683073117,-1362.14,0.00030958,2]
[325290459,1714683073127,-500.0,0.00030958,2]
[325290460,1714683073136,-511.4,0.00030958,2]
[325290461,1714683073145,-500.0,0.00030958,2]